bitfinex/quotes_BTCUSD_20230115
["timestamp","ask_amount","ask_price","bid_price","bid_amount"]
[1673800759544,0.007,20897.0,20895.0,0.007]
[1673800759802,0.1558,20896.0,20893.0,0.14324359]
[1673800760086,0.1558,20896.0,20891.0,0.14324359]
[1673800760087,0.155,20894.0,20891.0,0.14324359]
[1673800760341,1.80245184,20895.0,20890.0,0.7757541]
[1673800760342,0.1554,20892.0,20890.0,0.7757541]
[1673800760835,1.112563,20891.0,20890.0,0.5609086]
[1673800761109,0.8998,20891.0,20890.0,0.14324359]
[1673800761363,1.297483,20891.0,20889.0,0.36911388]
[1673800761586,0.290663,20890.0,20889.0,0.15426838]
[1673800761881,0.0779,20890.0,20889.0,0.01102479]
[1673800762134,0.07779029,20890.0,20889.0,0.01102479]
[1673800762392,0.39837329,20890.0,20889.0,0.01102479]
[1673800762669,0.80608515,20890.0,20889.0,0.01102479]
[1673800763179,0.56740215,20890.0,20889.0,0.01302479]
[1673800763447,0.48961186,20890.0,20889.0,0.01302479]
[1673800763705,0.0819,20890.0,20889.0,0.01302479]
[1673800764754,0.0819,20890.0,20889.0,0.38347164]
[1673800765012,0.0819,20890.0,20889.0,0.01302479]
[1673800765270,0.47365815,20890.0,20889.0,0.01302479]
[1673800765527,0.87214115,20890.0,20889.0,0.01302479]
[1673800765829,0.55155815,20890.0,20889.0,0.01302479]
[1673800766057,0.87214115,20890.0,20889.0,0.01302479]
[1673800768115,0.76432115,20890.0,20889.0,0.01302479]
[1673800768919,0.46043144,20890.0,20889.0,0.01302479]
[1673800769987,0.46043144,20890.0,20889.0,0.01405185]
[1673800770242,0.06867329,20890.0,20889.0,0.42489686]
[1673800771042,1.23257833,20891.0,20889.0,0.01302479]
[1673800772056,1.22857833,20891.0,20889.0,0.01102479]
[1673800772329,1.30357833,20891.0,20889.0,0.01202479]
[1673800772838,1.30357833,20891.0,20888.0,1.27609054]
[1673800773117,1.30357833,20891.0,20888.0,0.88532375]
[1673800773656,0.37699804,20890.0,20888.0,0.88532375]
[1673800774631,0.37699804,20890.0,20888.0,0.88632375]
[1673800775180,0.45299804,20890.0,20888.0,0.88732375]
[1673800776179,0.45299804,20890.0,20888.0,0.480723]
[1673800776474,0.21479251,20889.0,20888.0,0.480723]
[1673800776748,0.84931251,20889.0,20888.0,0.002]
[1673800776998,1.63451235,20889.0,20888.0,0.002]
[1673800777266,1.83451235,20889.0,20887.0,0.01151567]
[1673800777536,0.93274392,20888.0,20887.0,0.01151567]
[1673800777788,0.83817984,20888.0,20887.0,0.00151567]
[1673800778048,1.31692284,20888.0,20887.0,0.00151567]
[1673800778570,1.61282284,20888.0,20887.0,0.00151567]
[1673800778834,1.69482284,20888.0,20887.0,0.00251567]
[1673800779093,2.26737422,20888.0,20887.0,0.00251567]
[1673800779348,0.2,20887.0,20880.0,0.01250214]
[1673800779602,0.0773,20881.0,20880.0,0.01250214]
[1673800779851,0.290063,20881.0,20880.0,0.01250214]
[1673800780153,0.0773,20881.0,20880.0,0.01250214]
[1673800780374,0.45758152,20881.0,20880.0,0.01250214]
[1673800780646,0.85606452,20881.0,20880.0,0.01250214]
[1673800780913,0.92306452,20881.0,20880.0,0.01250214]
[1673800781501,0.92306452,20881.0,20877.0,0.368368]
[1673800781684,1.054263,20880.0,20877.0,0.368368]
[1673800781933,0.0771,20880.0,20878.0,0.39011482]
[1673800782186,0.43356642,20882.0,20879.0,0.2]
[1673800782438,0.099,20881.0,20879.0,0.19072595]
[1673800782700,0.099,20881.0,20878.0,0.87757582]
[1673800782977,0.46265694,20881.0,20878.0,0.87757582]
[1673800783239,0.46265694,20881.0,20879.0,0.45012922]
[1673800783501,1.30989576,20883.0,20880.0,0.0085]
[1673800783767,1.31533559,20883.0,20880.0,0.19922595]
[1673800784103,0.47383559,20883.0,20880.0,0.67814095]
[1673800784308,1.30533559,20883.0,20880.0,0.487415]
[1673800784575,0.47383559,20883.0,20880.0,0.966342]
[1673800784829,0.09,20881.0,20880.0,0.966342]
[1673800785127,0.47383559,20883.0,20880.0,1.266342]
[1673800785444,0.56383559,20883.0,20880.0,1.266342]
[1673800785663,0.47383559,20883.0,20881.0,0.46610256]
[1673800785912,0.47383559,20883.0,20881.0,0.94499956]
[1673800786175,1.29989576,20885.0,20881.0,0.94499956]
[1673800786431,1.29989576,20885.0,20881.0,1.13572551]
[1673800786432,0.09,20883.0,20881.0,1.13572551]
[1673800786679,0.47624645,20884.0,20881.0,0.94499956]
[1673800786931,0.09,20883.0,20881.0,1.42390356]
[1673800787182,0.55839454,20883.0,20881.0,0.94500656]
[1673800787713,0.46839454,20883.0,20881.0,0.94500656]
[1673800788240,1.29989576,20885.0,20881.0,0.94500656]
[1673800788492,0.1,20883.0,20881.0,1.61463651]
[1673800788746,0.191,20883.0,20881.0,1.42391056]
[1673800789006,0.1,20883.0,20881.0,1.42391056]
[1673800789262,0.1,20883.0,20881.0,0.94500656]
[1673800790301,0.1,20883.0,20881.0,0.65500656]
[1673800790805,0.19,20883.0,20881.0,0.50500656]
[1673800791834,0.19,20883.0,20881.0,0.98391056]
[1673800792092,0.19,20883.0,20881.0,0.478904]
[1673800792093,0.63477922,20883.0,20881.0,0.478904]
[1673800792345,0.47846576,20882.0,20881.0,0.478904]
[1673800792609,0.47846576,20882.0,20881.0,0.487404]
[1673800794163,0.072,20882.0,20881.0,1.66959923]
[1673800795192,0.072,20882.0,20881.0,1.84550753]
[1673800795445,0.072,20882.0,20881.0,1.76760753]
[1673800795701,0.072,20882.0,20881.0,1.66760753]
[1673800795955,0.072,20882.0,20881.0,1.28970753]
[1673800796211,0.072,20882.0,20881.0,1.18970753]
[1673800796728,0.009,20882.0,20881.0,1.19770753]
[1673800796981,0.45741414,20883.0,20881.0,1.18970753]
[1673800797543,0.009,20882.0,20881.0,1.19770753]
[1673800797803,0.003,20882.0,20881.0,1.49170753]
[1673800798060,0.003,20882.0,20881.0,1.81808504]
[1673800798374,0.4514315,20886.0,20881.0,1.31629989]
[1673800798646,0.076,20883.0,20882.0,0.89170498]
[1673800798901,0.076,20883.0,20882.0,2.00235981]
[1673800799178,0.076,20883.0,20882.0,1.78814022]
[1673800799436,0.076,20883.0,20882.0,2.22788585]
[1673800799721,0.0001,20883.0,20882.0,2.4186557]
[1673800799981,0.03174251,20889.0,20883.0,0.2]
[1673800800242,0.03174251,20889.0,20887.0,0.0779]
[1673800800500,0.03174251,20889.0,20888.0,1.63545495]
[1673800800753,0.03174251,20889.0,20888.0,1.744729]
[1673800801029,0.3980209,20889.0,20888.0,1.444729]
[1673800801274,0.12093251,20889.0,20888.0,0.487243]
[1673800801530,0.03274251,20889.0,20888.0,0.965986]
[1673800801780,0.03174251,20889.0,20888.0,1.33356309]
[1673800802046,0.03274251,20889.0,20888.0,1.41256309]
[1673800802305,0.03274251,20889.0,20888.0,1.71256309]
[1673800802615,0.03274251,20889.0,20888.0,1.63356309]
[1673800802616,0.03174251,20889.0,20888.0,1.63356309]
[1673800803632,0.03274251,20889.0,20888.0,1.67256309]
[1673800803860,0.03274251,20889.0,20888.0,1.63476545]
[1673800803861,0.03174251,20889.0,20888.0,1.63476545]
[1673800804123,0.03274251,20889.0,20888.0,1.71376545]
[1673800804379,0.03274251,20889.0,20888.0,1.71256309]
[1673800805167,0.03274251,20889.0,20888.0,1.41256309]
[1673800805690,0.03274251,20889.0,20888.0,1.04451]
[1673800805975,0.03274251,20889.0,20888.0,0.565767]
[1673800807520,0.48358319,20889.0,20888.0,0.565767]
[1673800808022,0.48358319,20889.0,20888.0,0.0875]
[1673800808286,0.48358319,20889.0,20888.0,0.079]
[1673800808812,0.48358319,20889.0,20888.0,0.557743]
[1673800808813,0.03274251,20889.0,20888.0,0.557743]
[1673800810883,0.03274251,20889.0,20888.0,2.14874605]
[1673800811152,0.03274251,20889.0,20888.0,1.81519429]
[1673800811457,0.03274251,20889.0,20888.0,2.50034058]
[1673800811676,0.03274251,20889.0,20888.0,2.42854515]
[1673800812199,0.03274251,20889.0,20888.0,2.28567668]
[1673800812493,0.03274251,20889.0,20888.0,2.42854515]
[1673800812672,0.03274251,20889.0,20888.0,1.67238046]
[1673800812957,0.03274251,20889.0,20888.0,2.15511295]
[1673800813220,0.03274251,20889.0,20888.0,2.59342769]
[1673800813485,0.03274251,20889.0,20888.0,2.10772795]
[1673800813814,0.03274251,20889.0,20888.0,1.48033349]
[1673800814254,0.4112791,20889.0,20888.0,1.044986]
[1673800815274,0.4112791,20889.0,20888.0,1.04613125]
[1673800815792,0.4112791,20889.0,20888.0,1.044986]
[1673800816296,0.4112791,20889.0,20888.0,1.04613125]
[1673800816557,0.4112791,20889.0,20888.0,1.044986]
[1673800817564,0.4112791,20889.0,20888.0,1.04613125]
[1673800817864,0.4062791,20889.0,20888.0,1.04613125]
[1673800818397,0.02774251,20889.0,20888.0,1.04613125]
[1673800818665,0.001,20889.0,20888.0,1.04613125]
[1673800824852,0.08919,20889.0,20888.0,1.044986]
[1673800825614,0.53311998,20889.0,20888.0,1.036486]
[1673800825924,0.52811998,20889.0,20888.0,0.079]
[1673800832103,0.84870298,20889.0,20888.0,0.079]
[1673800832364,0.52811998,20889.0,20888.0,0.079]
[1673800832617,0.60706437,20889.0,20888.0,0.079]
[1673800832885,0.92764737,20889.0,20888.0,0.079]
[1673800833141,0.60706437,20889.0,20888.0,0.079]
[1673800836580,0.92764737,20889.0,20888.0,0.079]
[1673800836835,0.60706437,20889.0,20888.0,0.079]
[1673800837090,0.60706437,20889.0,20888.0,0.22189804]
[1673800837394,0.60706437,20889.0,20888.0,0.22183794]
[1673800837571,0.60706437,20889.0,20888.0,0.47138997]
[1673800838651,0.60706437,20889.0,20888.0,0.47139178]
[1673800840845,0.60706437,20889.0,20888.0,0.43611274]
[1673800841093,0.60706437,20889.0,20888.0,0.22183794]
[1673800842348,0.60706437,20889.0,20888.0,0.079]
[1673800842609,0.92764737,20889.0,20888.0,0.22183794]
[1673800842868,0.60706437,20889.0,20888.0,0.22183794]
[1673800843132,0.60706437,20889.0,20888.0,0.079]
[1673800843713,0.92764737,20889.0,20888.0,0.079]
[1673800844184,1.44115739,20889.0,20886.0,0.35711274]
[1673800844443,1.44115739,20889.0,20885.0,0.14283794]
[1673800844444,0.87511512,20888.0,20885.0,0.14283794]
[1673800844722,1.74046712,20887.0,20883.0,0.35711274]
[1673800845074,0.67511512,20886.0,20883.0,0.35711274]
[1673800845286,0.320583,20885.0,20883.0,0.14283794]
[1673800845545,0.290663,20884.0,20883.0,0.14283794]
[1673800845797,0.72214582,20884.0,20881.0,0.35711274]
[1673800846055,1.191483,20883.0,20881.0,0.89464502]
[1673800846364,0.320583,20882.0,20881.0,0.85938667]
[1673800846573,0.8709,20883.0,20881.0,0.85938667]
[1673800847875,0.8709,20883.0,20880.0,0.14283794]
[1673800847876,1.349759,20883.0,20880.0,0.14283794]
[1673800848130,0.320583,20882.0,20880.0,0.37445646]
[1673800848396,0.320583,20881.0,20879.0,0.15641761]
[1673800848657,0.320583,20880.0,20879.0,0.15641761]
[1673800848945,0.43170814,20881.0,20879.0,0.81275672]
[1673800849166,2.30518314,20883.0,20879.0,0.81308546]
[1673800849412,0.46955495,20882.0,20879.0,1.00381141]
[1673800849669,0.46955495,20882.0,20879.0,0.81308546]
[1673800850185,0.009,20880.0,20879.0,0.59981066]
[1673800850444,0.93190707,20882.0,20879.0,0.45564398]
[1673800850701,0.55955495,20882.0,20879.0,0.59881066]
[1673800851215,0.09,20882.0,20881.0,0.49997454]
[1673800851491,0.09,20882.0,20881.0,1.76628254]
[1673800851732,0.09,20882.0,20881.0,1.4805828]
[1673800851993,0.09,20882.0,20881.0,1.10934483]
[1673800852246,0.7931,20883.0,20881.0,1.32361963]
[1673800852504,0.7931,20883.0,20881.0,1.10934483]
[1673800852758,0.082,20882.0,20881.0,1.11034483]
[1673800853273,0.082,20882.0,20881.0,1.10934483]
[1673800853543,0.7931,20883.0,20881.0,1.8088194]
[1673800853800,0.7931,20883.0,20881.0,1.80887952]
[1673800854085,0.833,20886.0,20882.0,0.65731163]
[1673800854266,0.3738805,20887.0,20883.0,0.81262239]
[1673800854575,1.2068805,20887.0,20884.0,0.19072595]
[1673800854841,0.5001409,20886.0,20884.0,0.19072595]
[1673800855101,0.40942743,20885.0,20883.0,0.62190544]
[1673800855387,0.079,20883.0,20882.0,0.83618724]
[1673800855630,0.46608966,20884.0,20882.0,0.63041244]
[1673800855890,0.42679723,20883.0,20881.0,0.79440565]
[1673800856136,1.18259723,20883.0,20881.0,0.42858341]
[1673800856695,1.18259723,20883.0,20881.0,0.57163085]
[1673800858036,1.18259723,20883.0,20882.0,0.42259674]
[1673800858037,0.8348,20883.0,20882.0,0.42259674]
[1673800858292,0.8348,20883.0,20882.0,0.56564418]
[1673800859329,0.8348,20883.0,20882.0,0.86564418]
[1673800859330,0.7558,20883.0,20882.0,0.86564418]
[1673800859478,0.8348,20883.0,20882.0,0.86664418]
[1673800859736,0.8348,20883.0,20882.0,1.08091898]
[1673800859993,0.8348,20883.0,20882.0,0.86664418]
[1673800860253,0.079,20883.0,20882.0,1.08091898]
[1673800860471,0.079,20883.0,20882.0,2.39600267]
[1673800860719,0.079,20883.0,20882.0,2.038878]
[1673800860974,0.079,20883.0,20882.0,2.18163256]
[1673800861496,0.079,20883.0,20882.0,2.03887848]
[1673800861741,0.079,20883.0,20882.0,2.39600315]
[1673800862015,0.079,20883.0,20882.0,1.97340641]
[1673800862240,0.079,20883.0,20882.0,1.339082]
[1673800862501,0.079,20883.0,20882.0,1.8454964]
[1673800862767,0.079,20883.0,20882.0,1.416782]
[1673800863014,0.08894439,20889.0,20883.0,0.0779]
[1673800863283,0.44864733,20889.0,20886.0,0.35760796]
[1673800863516,0.44864733,20889.0,20887.0,0.478766]
[1673800863770,0.44864733,20889.0,20887.0,0.66949195]
[1673800864017,0.08894439,20889.0,20888.0,0.43137994]
[1673800864264,0.09694439,20889.0,20888.0,0.43137994]
[1673800864512,0.08894439,20889.0,20888.0,0.91012294]
[1673800864760,0.08894439,20889.0,20888.0,1.83190912]
[1673800864761,0.16794439,20889.0,20888.0,1.83190912]
[1673800865284,0.16794439,20889.0,20888.0,1.91830912]
[1673800865592,0.16794439,20889.0,20888.0,1.73668722]
[1673800865806,0.07214996,20889.0,20888.0,1.65087626]
[1673800866036,0.12014996,20889.0,20888.0,1.65487626]
[1673800866291,0.07214996,20889.0,20888.0,1.65087626]
[1673800866537,0.07614996,20889.0,20888.0,1.69688346]
[1673800867310,0.07214996,20889.0,20888.0,2.27092977]
[1673800867569,0.07214996,20889.0,20888.0,2.31392977]
[1673800867570,0.07614996,20889.0,20888.0,2.31392977]
[1673800867821,0.07614996,20889.0,20888.0,2.59993318]
[1673800868125,0.08014996,20889.0,20888.0,2.64293318]
[1673800868353,0.07214996,20889.0,20888.0,2.12762707]
[1673800868593,0.07214996,20889.0,20888.0,2.34206525]
[1673800868846,0.07214996,20889.0,20888.0,2.12762707]
[1673800869124,0.07214996,20889.0,20888.0,2.09438908]
[1673800869397,0.07214996,20889.0,20888.0,2.21757945]
[1673800869891,0.07214996,20889.0,20888.0,1.80838567]
[1673800870145,0.07214996,20889.0,20888.0,2.00838567]
[1673800870681,0.07614996,20889.0,20888.0,2.06038567]
[1673800872465,0.07614996,20889.0,20888.0,1.93806738]
[1673800872729,0.07614996,20889.0,20888.0,1.5458027]
[1673800873243,0.07214996,20889.0,20888.0,1.4938027]
[1673800873735,0.07214996,20889.0,20888.0,1.65096308]
[1673800874002,0.07614996,20889.0,20888.0,1.8368027]
[1673800874766,0.07214996,20889.0,20888.0,1.7938027]
[1673800875291,0.07514996,20889.0,20888.0,1.7938027]
[1673800875843,0.07514996,20889.0,20888.0,1.65096308]
[1673800876295,0.07214996,20889.0,20888.0,1.65096308]
[1673800876581,0.07514996,20889.0,20888.0,1.7938027]
[1673800876847,0.07514996,20889.0,20888.0,1.65096308]
[1673800878966,0.07514996,20889.0,20888.0,1.64246308]
[1673800879219,0.07514996,20889.0,20888.0,1.34246308]
[1673800879507,0.07514996,20889.0,20888.0,0.86372008]
[1673800879788,0.07514996,20889.0,20888.0,1.16372008]
[1673800880289,0.07514996,20889.0,20888.0,1.3065597]
[1673800880544,0.07514996,20889.0,20888.0,1.16372008]
[1673800882284,0.07514996,20889.0,20888.0,1.3065597]
[1673800882544,0.07514996,20889.0,20888.0,1.7853027]
[1673800882807,0.07514996,20889.0,20888.0,1.7358164]
[1673800882808,0.07214996,20889.0,20888.0,1.7358164]
[1673800883061,0.07514996,20889.0,20888.0,1.59297678]
[1673800883322,0.06493497,20889.0,20888.0,1.87863569]
[1673800883576,0.06893497,20889.0,20888.0,2.60153009]
[1673800883838,0.06493497,20889.0,20888.0,2.55853009]
[1673800884104,0.06893497,20889.0,20888.0,2.12148302]
[1673800884360,0.06893497,20889.0,20888.0,2.12144793]
[1673800884606,0.06893497,20889.0,20888.0,1.90737626]
[1673800884865,0.06893497,20889.0,20888.0,2.12144764]
[1673800885164,0.06493497,20889.0,20888.0,2.07844764]
[1673800885403,0.06893497,20889.0,20888.0,1.90737626]
[1673800885930,0.06893497,20889.0,20888.0,2.6161019]
[1673800886219,0.06893497,20889.0,20888.0,2.40201859]
[1673800886472,0.06893497,20889.0,20888.0,2.61610167]
[1673800887243,0.06893497,20889.0,20888.0,2.41610167]
[1673800887495,0.06893497,20889.0,20888.0,2.41616629]
[1673800887759,0.06893497,20889.0,20888.0,2.13050738]
[1673800888022,0.06893497,20889.0,20888.0,2.41616629]
[1673800888551,0.06893497,20889.0,20888.0,0.92222897]
[1673800888807,0.42222474,20889.0,20888.0,0.0515]
[1673800889562,0.42222474,20889.0,20888.0,0.043]
[1673800890336,0.41822474,20889.0,20886.0,0.62153854]
[1673800890590,0.7947,20888.0,20887.0,0.0085]
[1673800890853,0.7947,20888.0,20887.0,0.687266]
[1673800891122,0.7947,20888.0,20887.0,0.14277154]
[1673800891453,0.7947,20888.0,20886.0,1.05298752]
[1673800891642,0.7947,20888.0,20887.0,1.72548956]
[1673800891926,0.7957,20888.0,20887.0,1.61445124]
[1673800892189,0.7957,20888.0,20887.0,1.64978524]
[1673800892455,0.7957,20888.0,20887.0,1.79251316]
[1673800892716,0.7957,20888.0,20887.0,2.06357645]
[1673800892981,0.7957,20888.0,20887.0,2.27796599]
[1673800893468,0.7957,20888.0,20887.0,1.99230708]
[1673800894000,0.7957,20888.0,20887.0,2.27796599]
[1673800894268,0.7957,20888.0,20887.0,1.022489]
[1673800894530,1.26041819,20888.0,20887.0,0.14300239]
[1673800894791,1.26041819,20888.0,20885.0,0.35739193]
[1673800894792,1.58100119,20888.0,20885.0,0.35739193]
[1673800895045,0.44077411,20887.0,20885.0,0.14300239]
[1673800895327,0.44077411,20887.0,20885.0,0.35739193]
[1673800895567,0.44077411,20887.0,20886.0,0.14300239]
[1673800896888,0.44077411,20887.0,20885.0,0.039]
[1673800897122,0.44077411,20887.0,20884.0,0.83621093]
[1673800897386,0.44577411,20887.0,20885.0,0.04]
[1673800897646,0.45077411,20887.0,20886.0,0.039]
[1673800897952,0.44679107,20886.0,20884.0,0.83621093]
[1673800898167,0.212763,20885.0,20884.0,0.66182139]
[1673800898422,0.0779,20886.0,20884.0,0.14300239]
[1673800898680,0.320583,20885.0,20884.0,0.14300239]
[1673800899479,0.55128452,20886.0,20883.0,0.35739193]
[1673800899739,0.55128452,20886.0,20883.0,0.39537996]
[1673800900007,0.499633,20885.0,20884.0,0.002]
[1673800900280,0.96891024,20885.0,20884.0,0.14300239]
[1673800900587,0.96991024,20885.0,20884.0,0.14500239]
[1673800900835,0.64732724,20885.0,20884.0,0.14300239]
[1673800901345,0.96791024,20885.0,20883.0,0.36039193]
[1673800901612,0.64832724,20885.0,20884.0,0.002]
[1673800902101,0.87905024,20885.0,20884.0,0.002]
[1673800902316,0.55846724,20885.0,20884.0,0.002]
[1673800903082,0.87905024,20885.0,20884.0,0.002]
[1673800903331,0.55746724,20885.0,20883.0,0.14300239]
[1673800904108,0.55746724,20885.0,20883.0,0.62185639]
[1673800904450,0.55846724,20885.0,20883.0,0.478854]
[1673800904679,0.55846724,20885.0,20883.0,0.480854]
[1673800904680,0.55946724,20885.0,20883.0,0.480854]
[1673800906424,0.55946724,20885.0,20883.0,0.48301938]
[1673800906676,0.55946724,20885.0,20883.0,0.480854]
[1673800907441,0.55946724,20885.0,20883.0,0.002]
[1673800907700,0.52413352,20884.0,20883.0,0.002]
[1673800907955,0.84471652,20884.0,20883.0,0.002]
[1673800908206,0.52413352,20884.0,20883.0,0.002]
[1673800908965,0.84471652,20884.0,20883.0,0.002]
[1673800909481,0.52413352,20884.0,20881.0,0.478902]
[1673800910000,0.52913352,20884.0,20883.0,0.036]
[1673800910526,0.52413352,20884.0,20881.0,0.478902]
[1673800910889,0.4225086,20883.0,20881.0,0.478902]
[1673800911862,0.4225086,20883.0,20881.0,0.514902]
[1673800912616,0.4225086,20883.0,20881.0,0.478902]
[1673800912874,0.005,20883.0,20882.0,0.56792595]
[1673800913132,0.005,20883.0,20882.0,2.18777227]
[1673800913394,0.005,20883.0,20882.0,1.90211336]
[1673800913645,0.005,20883.0,20882.0,2.10211336]
[1673800913887,0.005,20883.0,20882.0,1.90211336]
[1673800914133,0.42717757,20886.0,20882.0,1.90211336]
[1673800914396,0.005,20883.0,20882.0,2.0936679]
[1673800914690,0.005,20883.0,20882.0,1.93811469]
[1673800915399,0.005,20883.0,20882.0,1.90211469]
[1673800915658,0.42717757,20886.0,20882.0,1.90411469]
[1673800915905,0.42817757,20886.0,20883.0,0.77936091]
[1673800916200,0.42817757,20886.0,20884.0,0.95767]
[1673800916462,0.42717757,20886.0,20884.0,0.95767]
[1673800916708,0.42817757,20886.0,20884.0,0.95767]
[1673800917262,0.48317757,20886.0,20885.0,0.3]
[1673800917520,0.056,20886.0,20885.0,1.457624]
[1673800917771,0.056,20886.0,20885.0,1.257624]
[1673800918533,0.36133707,20888.0,20885.0,1.64248505]
[1673800918815,0.055,20886.0,20885.0,1.64548505]
[1673800919877,0.46627127,20886.0,20884.0,0.478813]
[1673800920418,0.59917127,20886.0,20885.0,0.003]
[1673800920924,0.86475427,20886.0,20883.0,0.478848]
[1673800921214,0.37150139,20885.0,20883.0,0.478848]
[1673800921712,0.37150139,20885.0,20883.0,0.478667]
[1673800921964,0.37150139,20885.0,20884.0,0.003]
[1673800922514,0.37150139,20885.0,20883.0,0.478667]
[1673800922739,0.37250139,20885.0,20883.0,0.480667]
[1673800923008,0.0776,20884.0,20881.0,0.478888]
[1673800923256,0.0776,20884.0,20881.0,0.62181962]
[1673800923524,0.0776,20884.0,20881.0,1.0854802]
[1673800923820,0.43388445,20883.0,20881.0,1.0854802]
[1673800924586,0.30572,20886.0,20881.0,1.5643842]
[1673800924837,0.005,20884.0,20882.0,0.57624137]
[1673800925104,0.41944399,20885.0,20882.0,0.57624137]
[1673800925105,0.41944399,20885.0,20883.0,0.478858]
[1673800925362,0.41944399,20885.0,20883.0,0.678858]
[1673800925618,0.41944399,20885.0,20883.0,0.478858]
[1673800925868,0.005,20886.0,20884.0,0.14293162]
[1673800926121,0.29321497,20889.0,20885.0,0.478812]
[1673800926122,0.41812663,20887.0,20885.0,0.478812]
[1673800926627,0.06493497,20889.0,20885.0,1.37195667]
[1673800926891,0.06493497,20889.0,20887.0,0.14293162]
[1673800927165,0.06493497,20889.0,20888.0,0.957486]
[1673800927675,0.06493497,20889.0,20888.0,1.257486]
[1673800927939,0.06493497,20889.0,20888.0,1.10041762]
[1673800928424,0.06493497,20889.0,20888.0,1.40041762]
[1673800928692,0.06493497,20889.0,20888.0,1.31480716]
[1673800928957,0.54729156,20889.0,20888.0,1.10141762]
[1673800929190,0.54729156,20889.0,20888.0,0.958486]
[1673800930463,0.06493497,20889.0,20888.0,0.958486]
[1673800930962,0.06493497,20889.0,20888.0,0.961486]
[1673800931224,0.11893497,20889.0,20888.0,0.961486]
[1673800932755,0.90673497,20889.0,20888.0,0.961486]
[1673800934828,0.90673497,20889.0,20888.0,0.482743]
[1673800935101,1.32134732,20889.0,20888.0,0.004]
[1673800935374,1.64193032,20889.0,20888.0,0.004]
[1673800937403,0.11893497,20889.0,20888.0,0.004]
[1673800937671,0.11893497,20889.0,20888.0,0.45225109]
[1673800937953,0.11893497,20889.0,20888.0,0.94297704]
[1673800938194,0.11893497,20889.0,20888.0,1.70973709]
[1673800938448,0.11893497,20889.0,20888.0,1.80981243]
[1673800938721,0.11893497,20889.0,20888.0,1.89422986]
[1673800939001,0.11893497,20889.0,20888.0,1.44796134]
[1673800939263,0.11893497,20889.0,20888.0,1.88434038]
[1673800939796,0.11893497,20889.0,20888.0,1.70636504]
[1673800940326,0.11893497,20889.0,20888.0,1.40636504]
[1673800940600,0.11893497,20889.0,20888.0,1.80602315]
[1673800940873,0.11893497,20889.0,20888.0,1.36964411]
[1673800941142,0.11893497,20889.0,20888.0,1.44674411]
[1673800941400,0.11893497,20889.0,20888.0,1.44684945]
[1673800941672,0.11893497,20889.0,20888.0,1.64684945]
[1673800941965,0.06493497,20889.0,20888.0,1.64284945]
[1673800942221,0.06993497,20889.0,20888.0,1.68484945]
[1673800943299,0.06493497,20889.0,20888.0,1.64284945]
[1673800943567,0.06993497,20889.0,20888.0,2.70230326]
[1673800943827,0.06993497,20889.0,20888.0,2.74356606]
[1673800945211,0.06986844,20889.0,20888.0,2.70230326]
[1673800946564,0.06986844,20889.0,20888.0,1.18484945]
[1673800947377,0.06986844,20889.0,20888.0,1.65259517]
[1673800947650,0.06986844,20889.0,20888.0,1.18484945]
[1673800947916,0.06986844,20889.0,20888.0,1.76234311]
[1673800948176,0.06986844,20889.0,20888.0,1.38484945]
[1673800948682,0.06986844,20889.0,20888.0,1.72611225]
[1673800948954,0.06986844,20889.0,20888.0,2.11820692]
[1673800949204,0.0628816,20889.0,20888.0,2.11820692]
[1673800949980,0.0628816,20889.0,20888.0,2.54341892]
[1673800950193,0.0628816,20889.0,20888.0,2.07694412]
[1673800950957,0.0628816,20889.0,20888.0,2.44705385]
[1673800951970,0.0628816,20889.0,20888.0,1.94716269]
[1673800952220,0.0628816,20889.0,20888.0,1.70080457]
[1673800952569,0.0628816,20889.0,20888.0,1.95631812]
[1673800953007,0.0628816,20889.0,20888.0,1.73356737]
[1673800953266,0.0628816,20889.0,20888.0,2.21690201]
[1673800953517,0.0628816,20889.0,20888.0,2.51690201]
[1673800953781,0.0628816,20889.0,20888.0,2.09696542]
[1673800954031,0.0628816,20889.0,20888.0,1.73989984]
[1673800954557,0.0628816,20889.0,20888.0,2.00852579]
[1673800954814,0.04414659,20889.0,20888.0,2.76585365]
[1673800955338,0.04414659,20889.0,20888.0,2.54661763]
[1673800957133,0.04414659,20889.0,20888.0,1.14867888]
[1673800957400,0.04414659,20889.0,20888.0,2.48712903]
[1673800958416,0.04414659,20889.0,20888.0,1.74919984]
[1673800958900,0.03973194,20889.0,20888.0,1.74919984]
[1673800960145,0.03973194,20889.0,20888.0,2.10621847]
[1673800960399,0.03973194,20889.0,20888.0,2.26906211]
[1673800961142,0.03973194,20889.0,20888.0,1.96906211]
[1673800962765,0.03973194,20889.0,20888.0,2.26906211]
[1673800963190,0.03973194,20889.0,20888.0,2.19116211]
[1673800963448,0.03973194,20889.0,20888.0,2.47683933]
[1673800963697,0.03973194,20889.0,20888.0,1.83414194]
[1673800964470,0.03973194,20889.0,20888.0,2.19144197]
[1673800965263,0.03973194,20889.0,20888.0,1.83414194]
[1673800965534,0.03973194,20889.0,20888.0,1.47129984]
[1673800966048,0.03973194,20889.0,20888.0,1.67129984]
[1673800966298,0.03973194,20889.0,20888.0,2.17821798]
[1673800966603,0.02808926,20889.0,20888.0,1.74919984]
[1673800969137,0.02528034,20889.0,20888.0,1.74919984]
[1673800969390,0.02528034,20889.0,20888.0,2.65506405]
[1673800969642,0.02528034,20889.0,20888.0,1.64622824]
[1673800970150,0.02528034,20889.0,20888.0,1.68749104]
[1673800970937,0.02528034,20889.0,20888.0,2.04512856]
[1673800971695,0.02528034,20889.0,20888.0,2.04723556]
[1673800971943,0.02528034,20889.0,20888.0,2.0473307]
[1673800972193,0.02528034,20889.0,20888.0,1.68749104]
[1673800972446,0.02528034,20889.0,20888.0,1.98749104]
[1673800972707,0.02528034,20889.0,20888.0,2.18749104]
[1673800973268,0.02528034,20889.0,20888.0,1.94622824]
[1673800974202,0.02528034,20889.0,20888.0,1.98749104]
[1673800975479,0.45347418,20889.0,20888.0,0.8892069]
[1673800975727,0.45347418,20889.0,20888.0,0.042]
[1673800975728,0.92985718,20889.0,20888.0,0.042]
[1673800976239,0.92485718,20889.0,20888.0,0.14320042]
[1673800976499,0.92985718,20889.0,20888.0,0.039]
[1673800976720,0.92485718,20889.0,20887.0,0.35800105]
[1673800977020,0.290063,20888.0,20887.0,0.39324311]
[1673800977276,0.290063,20888.0,20887.0,0.35800105]
[1673800977785,0.9141,20888.0,20887.0,0.25006174]
[1673800978093,1.234683,20888.0,20887.0,0.21480063]
[1673800978328,1.234683,20888.0,20887.0,0.14728219]
[1673800978575,0.8368,20888.0,20887.0,1.72476603]